bitfinex/quotes_SOLUSD_20250928
["timestamp","ask_amount","ask_price","bid_price","bid_amount"]
[1759056659938,0.7,201.29,201.25,38.1]
[1759056660131,0.7,201.28,201.25,38.1]
[1759056660532,0.7,201.28,201.25,43.06889489]
[1759056660731,0.7,201.3,201.25,43.65889489]
[1759056660939,0.7,201.29,201.25,43.65889489]
[1759056662727,0.7,201.31,201.26,38.67]
[1759056662945,0.7,201.3,201.26,0.59]
[1759056663246,26.0,201.32,201.27,38.08]
[1759056663452,0.7,201.31,201.27,38.67]
[1759056663925,0.7,201.3,201.27,38.08]
[1759056664330,26.0,201.32,201.27,38.67]
[1759056664548,0.7,201.31,201.27,38.67]
[1759056666056,0.7,201.3,201.27,38.08]
[1759056667144,0.7,201.3,201.26,9.93517969]
[1759056667348,0.7,201.3,201.27,38.08]
[1759056667565,0.7,201.3,201.26,48.60517969]
[1759056668956,26.0,201.32,201.26,9.93517969]
[1759056669159,0.7,201.31,201.27,38.67]
[1759056669363,0.7,201.3,201.27,38.67]
[1759056669748,0.7,201.3,201.27,38.08]
[1759056670557,26.0,201.32,201.27,38.08]
[1759056670865,3.34710596,201.35,201.28,0.59]
[1759056671035,17.77947646,201.4,201.28,15.53656603]
[1759056671036,26.69,201.37,201.28,15.53656603]
[1759056671359,26.69,201.37,201.29,38.67]
[1759056671548,30.03710596,201.37,201.29,38.08]
[1759056671755,0.69,201.36,201.3,15.53656602]
[1759056671960,0.69,201.36,201.31,5.55746311]
[1759056672140,0.69,201.36,201.32,0.59]
[1759056673068,0.69,201.36,201.32,5.5570651]
[1759056673260,0.69,201.38,201.33,38.67]
[1759056673471,0.69,201.4,201.34,0.59]
[1759056674268,0.69,201.4,201.35,3.53901701]
[1759056675041,0.69,201.4,201.36,0.59]
[1759056675461,0.69,201.39,201.35,9.0954114]
[1759056677557,26.0,201.41,201.35,8.5054114]
[1759056677752,26.69,201.41,201.36,0.59]
[1759056677952,0.69,201.4,201.36,0.59]
[1759056678262,0.69,201.39,201.36,38.06]
[1759056679170,0.69,201.39,201.35,8.5054114]
[1759056679379,0.69,201.39,201.35,47.1554114]
[1759056679676,0.69,201.38,201.35,46.5654114]
[1759056680453,0.7,201.39,201.35,47.1554114]
[1759056682667,0.7,201.39,201.35,42.18901701]
[1759056682870,0.7,201.39,201.36,38.06]
[1759056683670,0.7,201.38,201.35,41.59901701]
[1759056683980,0.7,201.37,201.35,41.59901701]
[1759056684551,5.16476315,201.42,201.35,41.59901701]
[1759056684751,0.7,201.38,201.35,41.59901701]
[1759056685977,26.0,201.41,201.35,42.18901701]
[1759056686176,0.7,201.4,201.36,38.06]
[1759056686384,0.7,201.39,201.36,38.06]
[1759056689962,0.7,201.39,201.35,4.12901701]
[1759056690161,0.7,201.39,201.36,38.06]
[1759056690376,0.7,201.39,201.36,38.65]
[1759056690561,0.7,201.4,201.36,38.65]
[1759056691372,0.2,201.42,201.37,0.59]
[1759056691570,0.7,201.41,201.37,0.59]
[1759056691899,0.2,201.42,201.36,38.06]
[1759056692066,0.7,201.4,201.36,38.65]
[1759056692477,0.7,201.4,201.37,0.59]
[1759056692993,0.7,201.4,201.36,38.06]
[1759056692994,0.7,201.4,201.36,38.65]
[1759056694977,0.7,201.39,201.36,38.06]
[1759056697688,0.7,201.39,201.36,38.04]
[1759056699086,0.7,201.41,201.37,0.59]
[1759056700270,0.7,201.4,201.37,0.59]
[1759056700993,0.7,201.4,201.36,38.63]
[1759056701292,0.7,201.39,201.35,14.94284363]
[1759056701484,0.7,201.38,201.35,38.04]
[1759056702294,0.2,201.42,201.35,38.63]
[1759056702491,0.7,201.39,201.35,38.63]
[1759056705491,0.7,201.39,201.36,0.59]
[1759056708210,0.7,201.39,201.35,43.00646174]
[1759056708376,0.7,201.39,201.35,43.59646174]
[1759056709898,0.2,201.42,201.35,43.00646174]
[1759056710193,0.7,201.41,201.36,38.63]
[1759056710383,0.7,201.41,201.36,0.59]
[1759056710583,0.65,201.4,201.37,38.04]
[1759056710778,0.65,201.41,201.37,38.04]
[1759056710986,0.65,201.4,201.37,38.04]
[1759056711574,0.65,201.4,201.36,0.59]
[1759056711893,0.65,201.4,201.37,38.04]
[1759056714271,0.65,201.39,201.37,38.04]
[1759056714497,0.65,201.38,201.37,38.04]
[1759056714796,0.65,201.38,201.36,38.04]
[1759056714998,26.0,201.4,201.36,38.04]
[1759056715296,0.2,201.42,201.37,0.59]
[1759056715690,0.2,201.42,201.37,15.52837919]
[1759056716004,0.2,201.42,201.38,38.63]
[1759056716501,0.2,201.42,201.39,7.54706009]
[1759056716873,0.2,201.42,201.4,0.59]
[1759056717084,0.2,201.42,201.41,38.04]
[1759056717274,0.2,201.42,201.41,38.63]
[1759056717689,0.2,201.42,201.41,40.62178389]
[1759056719899,0.2,201.42,201.41,40.03178389]
[1759056722090,0.2,201.42,201.41,1.99178389]
[1759056722594,0.2,201.42,201.41,40.01178389]
[1759056724792,0.2,201.42,201.41,7.54678066]
[1759056725317,0.2,201.42,201.41,45.56678066]
[1759056727021,0.2,201.42,201.41,59.16237467]
[1759056727202,0.2,201.42,201.41,21.14237467]
[1759056727393,0.2,201.42,201.41,59.16237467]
[1759056727592,0.2,201.42,201.41,59.65887434]
[1759056727792,1e-08,201.42,201.41,59.65887434]
[1759056729218,0.2,201.43,201.41,59.65887434]
[1759056729219,1e-08,201.43,201.42,13.59559401]
[1759056729429,1e-08,201.43,201.42,52.20559401]
[1759056729916,1e-08,201.43,201.42,54.19648568]
[1759056730792,1e-08,201.43,201.42,16.17648568]
[1759056730996,1e-08,201.43,201.42,54.19648568]
[1759056731320,1e-08,201.43,201.42,59.16123595]
[1759056733021,1e-08,201.43,201.42,21.14123595]
[1759056733531,1e-08,201.43,201.42,59.16123595]
[1759056735018,1e-08,201.43,201.42,21.14123595]
[1759056735198,1e-08,201.43,201.42,59.16123595]
[1759056735398,1e-08,201.43,201.42,59.14123595]
[1759056738623,1e-08,201.43,201.42,193.84123595]
[1759056741909,1e-08,201.43,201.42,155.84123595]
[1759056742110,1e-08,201.43,201.42,193.84123595]
[1759056742514,1e-08,201.43,201.42,155.84123595]
[1759056742919,1e-08,201.43,201.42,193.84123595]
[1759056745222,1e-08,201.43,201.42,155.84123595]
[1759056745430,1e-08,201.43,201.42,193.84123595]
[1759056747639,0.69000001,201.43,201.42,155.25123595]
[1759056748137,1e-08,201.43,201.42,193.25123595]
[1759056751433,0.69000001,201.43,201.42,6.95564194]
[1759056751636,0.69000001,201.43,201.42,39.99089167]
[1759056752421,0.69000001,201.43,201.42,44.95564194]
[1759056752614,0.69000001,201.43,201.42,6.95564194]
[1759056752812,0.69000001,201.43,201.42,44.95564194]
[1759056755925,0.69000001,201.43,201.42,6.95564194]
[1759056756118,0.69000001,201.43,201.42,44.95564194]
[1759056756843,0.69000001,201.43,201.42,6.95564194]
[1759056757339,0.69000001,201.43,201.42,44.95564194]
[1759056758425,0.69000001,201.43,201.42,58.55123595]
[1759056758931,1e-08,201.43,201.42,58.55123595]
[1759056761239,0.69000001,201.43,201.42,58.55123595]
[1759056762851,0.69000001,201.43,201.42,20.55123595]
[1759056763346,0.69000001,201.43,201.42,58.55123595]
[1759056766854,1e-08,201.43,201.42,58.55123595]
[1759056767345,0.69000001,201.43,201.42,58.55123595]
[1759056770124,1e-08,201.43,201.42,58.55123595]
[1759056770527,1e-08,201.43,201.42,59.14123595]
[1759056770938,1e-08,201.43,201.42,58.55123595]
[1759056774157,1e-08,201.43,201.42,193.25123595]
[1759056776552,1e-08,201.43,201.42,208.54237282]
[1759056778158,1e-08,201.43,201.42,170.54237282]
[1759056778365,1e-08,201.43,201.42,208.52237282]
[1759056789781,1e-08,201.43,201.42,170.54237282]
[1759056790280,1e-08,201.43,201.42,208.52237282]
[1759056793750,1e-08,201.43,201.42,170.54237282]
[1759056793952,1e-08,201.43,201.42,208.52237282]
[1759056794569,0.72000001,201.43,201.42,208.52237282]
[1759056795262,1e-08,201.43,201.42,208.52237282]
[1759056796680,1e-08,201.43,201.42,170.54237282]
[1759056796982,1e-08,201.43,201.42,208.52237282]
[1759056797281,1e-08,201.43,201.42,170.54237282]
[1759056797455,1e-08,201.43,201.42,208.52237282]
[1759056797878,1e-08,201.43,201.42,170.54237282]
[1759056798057,1e-08,201.43,201.42,208.52237282]
[1759056804487,1e-08,201.43,201.42,170.54237282]
[1759056804786,1e-08,201.43,201.42,208.52237282]
[1759056804986,1e-08,201.43,201.42,209.11237282]
[1759056805867,1e-08,201.45,201.44,26.0]
[1759056806067,1e-08,201.45,201.44,198.68]
[1759056806274,1e-08,201.45,201.44,199.27]
[1759056806467,1e-08,201.45,201.44,201.26089167]
[1759056807675,1e-08,201.45,201.44,206.22514901]
[1759056808076,1e-08,201.45,201.44,205.63514901]
[1759056810574,1e-08,201.45,201.44,220.56514901]
[1759056810779,1e-08,201.45,201.44,205.63514901]
[1759056813980,0.2,201.46,201.45,13.59559401]
[1759056813981,1e-08,201.46,201.45,13.59559401]
[1759056814189,1e-08,201.46,201.45,52.14559401]
[1759056814482,1e-08,201.46,201.45,14.18559401]
[1759056814682,1e-08,201.46,201.45,53.54618846]
[1759056815690,1e-08,201.46,201.45,150.28618846]
[1759056815877,1e-08,201.46,201.45,193.21019938]
[1759056820497,0.68000001,201.46,201.45,193.21019938]
[1759056821388,0.68000001,201.46,201.45,155.25019938]
[1759056821599,0.68000001,201.46,201.45,193.21019938]
[1759056822607,0.68000001,201.46,201.45,155.25019938]
[1759056822779,0.68000001,201.46,201.45,193.21019938]
[1759056822981,1e-08,201.46,201.45,193.21019938]
[1759056823582,0.68000001,201.46,201.45,155.25019938]
[1759056824008,0.68000001,201.46,201.45,193.21019938]
[1759056829809,0.68000001,201.46,201.45,155.25019938]
[1759056830012,0.68000001,201.46,201.45,174.65059445]
[1759056830692,0.68000001,201.46,201.45,136.69059445]
[1759056831011,0.68000001,201.46,201.45,1.27059445]
[1759056836614,0.68000001,201.46,201.43,37.96]
[1759056836788,0.67,201.45,201.43,37.96]
[1759056836989,0.67,201.44,201.43,37.96]
[1759056837718,0.67,201.44,201.43,43.12280816]
[1759056839189,0.67,201.44,201.43,48.08731195]
[1759056839389,0.67,201.44,201.43,43.12280816]
[1759056842603,1e-08,201.46,201.43,48.75731195]
[1759056842788,0.67000001,201.46,201.43,48.75731195]
[1759056842995,0.67000001,201.46,201.43,43.59450379]
[1759056843194,0.67000001,201.46,201.44,14.93540438]
[1759056843395,0.67000001,201.46,201.45,37.96]
[1759056843817,1e-08,201.46,201.45,52.89540438]
[1759056844627,1e-08,201.46,201.45,58.5294153]
[1759056847624,1e-08,201.46,201.45,19.8994153]
[1759056847816,1e-08,201.46,201.45,57.8594153]
[1759056849519,0.67000001,201.46,201.45,19.8994153]
[1759056849734,0.67000001,201.46,201.45,57.8594153]
[1759056850218,1e-08,201.46,201.45,57.8594153]
[1759056855635,1e-08,201.46,201.45,19.8994153]
[1759056855818,1e-08,201.46,201.45,57.8594153]
[1759056856419,1e-08,201.46,201.45,19.8994153]
[1759056856740,1e-08,201.46,201.45,57.8594153]
[1759056857053,1e-08,201.46,201.45,19.8994153]
[1759056857217,1e-08,201.46,201.45,57.8594153]
[1759056863244,1e-08,201.46,201.45,19.8994153]
[1759056863450,1e-08,201.46,201.45,57.8594153]
[1759056863646,1e-08,201.46,201.45,19.8994153]
[1759056863947,1e-08,201.46,201.45,57.8394153]
[1759056864145,1e-08,201.46,201.45,19.8994153]
[1759056864352,1e-08,201.46,201.45,57.8394153]
[1759056865937,1e-08,201.46,201.45,14.93540438]
[1759056866135,0.66000001,201.46,201.45,52.87540438]
[1759056866938,0.66000001,201.46,201.45,14.93540438]
[1759056867160,0.66000001,201.46,201.45,52.87540438]
[1759056872062,0.66000001,201.46,201.45,14.93540438]
[1759056872268,0.66000001,201.46,201.45,52.87540438]
[1759056873165,0.66000001,201.46,201.45,14.93540438]
[1759056873367,0.66000001,201.46,201.45,52.87540438]
[1759056880467,1e-08,201.46,201.45,52.87540438]
[1759056882873,1e-08,201.46,201.45,37.94]
[1759056886474,0.66000001,201.46,201.45,37.94]
[1759056887677,1e-08,201.46,201.45,37.94]
[1759056888277,1e-08,201.46,201.43,7.61608503]
[1759056888572,1e-08,201.46,201.44,37.94]
[1759056892276,0.69,201.45,201.43,6.95608503]
[1759056892482,0.69000001,201.46,201.44,37.94]
[1759056895781,0.69,201.45,201.4,37.94]
[1759056896090,0.69,201.44,201.4,37.94]
[1759056896280,0.69,201.43,201.4,37.94]
[1759056896493,0.69,201.42,201.4,37.94]
[1759056897374,0.69,201.42,201.41,37.94]
[1759056900872,0.69,201.42,201.39,0.71]
[1759056900873,0.69,201.42,201.38,4.9640824]
[1759056901069,0.69,201.41,201.39,37.94]
[1759056901266,0.69,201.41,201.35,0.71]
[1759056901267,0.69,201.4,201.35,0.71]
[1759056901570,3.34889048,201.39,201.35,37.94]
[1759056901904,0.69,201.38,201.35,37.94]
[1759056902104,0.69,201.37,201.35,37.94]
[1759056903190,0.69,201.39,201.35,38.65]
[1759056903397,0.69,201.38,201.35,38.65]
[1759056905475,0.69,201.38,201.35,37.94]
[1759056905676,0.69,201.37,201.35,37.94]
[1759056905988,30.96527145,201.4,201.35,37.94]
[1759056906192,0.69,201.37,201.35,37.94]
[1759056906489,0.69,201.37,201.34,37.94]
[1759056906672,0.69,201.37,201.34,38.65]
[1759056906870,0.69,201.37,201.34,0.71]
[1759056907090,0.69,201.37,201.34,38.65]
[1759056909297,30.96527145,201.4,201.31,0.71]
[1759056909298,0.69,201.36,201.31,0.71]
[1759056909477,0.69,201.36,201.32,37.94]
[1759056909672,0.69,201.35,201.32,37.94]
[1759056909991,0.69,201.34,201.31,37.94]
[1759056910494,0.69,201.34,201.31,38.6]
[1759056912402,0.72,201.33,201.29,0.66]
[1759056912703,30.96626255,201.36,201.29,38.62]
[1759056912704,0.72,201.32,201.29,38.62]
[1759056913302,30.96626255,201.36,201.27,0.66]
[1759056913303,0.72,201.31,201.27,0.66]
[1759056913505,0.72,201.3,201.27,38.62]
[1759056914291,0.72,201.3,201.27,0.66]
[1759056914510,0.72,201.29,201.26,37.96]
[1759056914716,0.72,201.31,201.27,0.66]
[1759056915005,0.72,201.3,201.27,0.66]
[1759056917386,4.96747235,201.31,201.25,37.96]
[1759056917592,0.72,201.3,201.26,0.66]
[1759056917786,0.72,201.3,201.25,37.96]
[1759056918123,0.72,201.3,201.27,0.66]
[1759056919207,0.72,201.3,201.24,0.76]
[1759056919400,0.72,201.3,201.24,38.72]
[1759056919705,0.72,201.29,201.24,38.72]
[1759056920020,0.72,201.28,201.24,0.76]
[1759056920389,17.38525729,201.32,201.24,0.76]
[1759056920692,0.7,201.31,201.24,0.76]
[1759056921411,4.96770988,201.3,201.24,0.76]
[1759056921606,0.7,201.29,201.24,0.76]
[1759056922003,0.7,201.29,201.25,0.68]
[1759056922904,26.0,201.32,201.25,0.68]
[1759056923208,26.0,201.29,201.25,0.68]
[1759056923410,0.7,201.28,201.25,0.68]
[1759056924204,26.0,201.28,201.25,0.68]
[1759056924703,0.7,201.3,201.25,0.68]
[1759056928497,0.7,201.29,201.25,0.68]
[1759056929701,26.0,201.31,201.25,0.68]
[1759056929895,26.7,201.31,201.25,0.68]
[1759056930093,26.7,201.31,201.25,5.64882476]
[1759056930294,0.7,201.31,201.26,0.68]
[1759056930593,26.0,201.32,201.26,0.68]
[1759056930796,0.7,201.31,201.26,0.68]
[1759056930994,0.7,201.3,201.26,0.68]
[1759056932202,26.0,201.32,201.26,5.64863326]
[1759056932510,26.0,201.32,201.27,0.68]
[1759056932888,26.7,201.32,201.27,0.68]
[1759056933294,26.0,201.32,201.27,0.68]
[1759056933588,0.7,201.31,201.27,0.68]
[1759056934629,0.7,201.31,201.28,0.68]
[1759056935119,0.7,201.32,201.28,0.68]
[1759056935414,0.7,201.32,201.29,0.68]
[1759056935714,0.7,201.32,201.28,0.68]
[1759056935918,0.7,201.31,201.28,0.68]
[1759056937597,26.0,201.33,201.26,4.9684732]
[1759056937803,0.7,201.3,201.27,0.68]
[1759056938008,26.0,201.33,201.26,4.9684732]
[1759056938009,0.7,201.32,201.28,0.68]
[1759056941836,0.7,201.32,201.25,4.96894409]
[1759056942025,0.7,201.31,201.27,0.68]
[1759056942639,0.7,201.31,201.25,4.96894409]
[1759056942829,0.7,201.31,201.26,0.68]
[1759056944242,26.7,201.33,201.26,5.64864551]
[1759056944440,26.7,201.33,201.26,4.96864551]
[1759056944756,26.7,201.33,201.27,0.68]
[1759056945030,0.7,201.32,201.27,0.68]
[1759056945240,0.7,201.32,201.28,0.68]
[1759056946320,0.7,201.31,201.28,0.68]
[1759056949359,26.7,201.31,201.28,0.68]
[1759056955557,26.7,201.31,201.26,4.96864551]
[1759056955732,26.7,201.31,201.27,0.68]
[1759056955932,26.0,201.31,201.27,0.68]
[1759056956141,0.68,201.3,201.27,0.68]
[1759056960757,26.0,201.32,201.27,5.64839948]
[1759056960955,26.0,201.32,201.28,0.68]
[1759056961356,29.35481493,201.33,201.28,0.68]
[1759056961574,26.0,201.33,201.28,0.68]
[1759056962082,26.68,201.33,201.28,0.68]
[1759056964487,26.68,201.33,201.27,42.92839948]
[1759056964684,0.68,201.32,201.29,0.68]
[1759056966586,26.0,201.34,201.29,4.96793811]
[1759056966757,0.68,201.33,201.3,0.68]
[1759056967593,14.9480555,201.37,201.3,0.68]
[1759056967771,0.68,201.34,201.31,0.68]
[1759056967977,26.68,201.34,201.31,0.68]
[1759056969060,3.3543066,201.35,201.32,0.68]
[1759056969261,0.68,201.36,201.3,4.9676396]
[1759056969262,0.68,201.36,201.33,0.68]
[1759056969874,0.68,201.35,201.31,0.68]
[1759056970081,0.68,201.35,201.3,4.9676396]
[1759056970082,0.68,201.35,201.32,0.7]
[1759056978924,0.72,201.34,201.31,0.7]
[1759056979416,0.72,201.35,201.32,0.7]
[1759056979620,26.0,201.37,201.3,42.90770988]
[1759056979802,0.72,201.36,201.31,5.66732051]
[1759056980003,0.72,201.35,201.31,43.60732051]
[1759056980721,0.72,201.35,201.32,0.68]
[1759056981598,0.72,201.35,201.31,42.90732051]
[1759056981795,0.71,201.34,201.31,37.94]
[1759056982019,0.71,201.33,201.31,37.94]
[1759056982222,26.0,201.37,201.31,37.94]
[1759056982421,0.71,201.34,201.26,0.68]
[1759056983002,26.0,201.33,201.26,0.68]
[1759056983208,0.71,201.32,201.26,0.68]
[1759056983620,0.71,201.32,201.26,5.64869442]
[1759056983802,0.71,201.31,201.26,5.64869442]
[1759056984002,0.71,201.3,201.27,0.68]
[1759056984922,0.71,201.3,201.26,4.96869442]
[1759056985127,0.71,201.3,201.27,0.68]
[1759056986636,0.71,201.34,201.28,0.68]
[1759056987425,0.71,201.34,201.28,38.62]
[1759056987638,0.71,201.33,201.29,5.64795667]
[1759056987816,0.71,201.33,201.3,0.68]
[1759056990741,0.71,201.36,201.3,5.64770405]
[1759056990921,0.71,201.36,201.31,38.62]
[1759056991117,0.71,201.35,201.32,0.68]
[1759056997358,0.71,201.35,201.32,38.62]
[1759057002454,38.41959872,201.38,201.33,0.68]
[1759057002632,0.71,201.36,201.32,38.62]
[1759057002963,38.41959872,201.38,201.31,4.96733167]
[1759057003155,0.71,201.35,201.28,0.68]
[1759057003461,0.71,201.35,201.29,37.94]
[1759057003763,0.71,201.34,201.29,37.94]
[1759057003961,15.65731073,201.34,201.29,37.94]
[1759057004162,0.71,201.33,201.29,38.62]
[1759057004364,0.71,201.33,201.3,0.68]
[1759057006252,15.65731073,201.34,201.3,0.68]
[1759057006762,0.71,201.33,201.3,0.68]
[1759057007339,14.94731073,201.34,201.31,0.68]
[1759057007649,0.71,201.35,201.29,4.96792821]
[1759057007962,0.71,201.35,201.32,0.68]
[1759057008337,0.71,201.35,201.31,4.96739349]
[1759057008543,0.71,201.35,201.31,5.64739349]
[1759057010133,0.71,201.35,201.31,4.96739349]
[1759057010337,0.71,201.35,201.32,0.68]
[1759057012638,0.72,201.36,201.33,0.7]
[1759057012835,0.72,201.35,201.32,4.96718205]
[1759057013063,0.72,201.35,201.32,5.66718205]
[1759057014061,26.72,201.38,201.33,0.7]
[1759057014237,0.72,201.37,201.33,0.7]
[1759057014634,0.72,201.36,201.33,0.7]
[1759057018870,0.72,201.36,201.33,5.6669509]
[1759057020375,0.72,201.36,201.33,0.7]
[1759057020673,41.66358796,201.38,201.34,0.7]
[1759057021076,41.66358796,201.38,201.32,43.60706093]
[1759057021249,0.72,201.37,201.32,43.60706093]
[1759057021571,0.72,201.36,201.33,0.7]
[1759057023674,0.72,201.35,201.32,38.64]
[1759057024974,0.72,201.35,201.32,0.7]
[1759057025173,0.72,201.35,201.32,38.64]
[1759057026588,0.72,201.35,201.32,0.7]
[1759057026762,0.72,201.35,201.32,38.64]
[1759057030164,0.72,201.35,201.32,0.7]
[1759057030364,0.72,201.35,201.32,38.64]
[1759057030787,0.72,201.36,201.33,0.67]
[1759057032890,0.72,201.37,201.33,0.67]
[1759057033086,14.94358796,201.38,201.33,5.63690325]
[1759057033289,14.94358796,201.38,201.34,0.67]
[1759057033594,14.94358796,201.38,201.35,37.94]
[1759057033891,0.72,201.41,201.36,38.61]
[1759057034068,0.72,201.41,201.37,0.67]
[1759057034267,0.72,201.41,201.36,37.94]
[1759057034467,0.72,201.41,201.37,0.67]
[1759057035394,0.72,201.41,201.38,0.67]
[1759057035687,4.07365667,201.42,201.38,0.67]
[1759057035876,0.72,201.42,201.38,0.67]
[1759057036470,41.66061107,201.43,201.38,0.67]
[1759057036671,26.72,201.43,201.38,0.67]
[1759057037385,26.72,201.43,201.38,5.6356679]
[1759057037684,26.72,201.43,201.39,0.67]
[1759057038265,26.0,201.43,201.39,0.67]
[1759057038484,0.72,201.42,201.39,0.67]
[1759057039209,37.94000001,201.46,201.4,37.92]
[1759057039210,1e-08,201.46,201.4,37.92]
[1759057039403,1e-08,201.46,201.41,0.67]
[1759057039404,0.72000001,201.46,201.41,0.67]
[1759057039914,0.72000001,201.46,201.42,37.92]
[1759057040096,0.72000001,201.46,201.42,38.59]
[1759057040294,0.72000001,201.46,201.43,0.67]
[1759057040491,1e-08,201.46,201.43,0.67]
[1759057040695,1e-08,201.46,201.44,0.67]
[1759057041091,0.70000001,201.46,201.43,0.67]
[1759057044510,0.70000001,201.46,201.43,5.63449735]
[1759057044702,0.70000001,201.46,201.42,38.59]
[1759057045319,0.7,201.45,201.4,37.92]
[1759057045486,0.7,201.44,201.4,37.92]
[1759057045692,0.7,201.43,201.4,37.92]
[1759057046694,0.7,201.43,201.39,5.63544763]
[1759057046900,0.7,201.43,201.4,37.92]
[1759057047697,0.7,201.43,201.4,38.59]
[1759057050401,0.7,201.44,201.4,42.88519249]
[1759057050632,0.7,201.44,201.41,0.67]
[1759057054810,14.93763539,201.46,201.41,4.96498287]
[1759057055019,0.7,201.45,201.42,0.67]
[1759057056228,0.7,201.45,201.41,5.63498287]
[1759057056411,14.93763539,201.46,201.41,5.63498287]
[1759057056713,0.7,201.44,201.41,5.63498287]
[1759057057847,14.93763539,201.46,201.41,4.96498287]
[1759057058143,0.7,201.45,201.42,0.67]
[1759057061120,0.7,201.45,201.42,5.6347244]
[1759057062742,15.63763539,201.46,201.43,0.67]
[1759057063324,0.70000001,201.46,201.43,0.67]
[1759057064352,0.7,201.45,201.41,5.63499677]
[1759057064528,0.7,201.45,201.42,0.67]
[1759057064955,1e-08,201.46,201.43,0.67]
[1759057065142,0.70000001,201.46,201.42,0.67]
[1759057065347,0.7,201.45,201.42,0.67]
[1759057066149,0.7,201.44,201.41,5.63499677]
[1759057067338,0.7,201.45,201.41,5.63499677]
[1759057070853,0.7,201.45,201.42,0.68]
[1759057073155,0.7,201.45,201.42,5.64463793]
[1759057073352,1e-08,201.46,201.42,5.64463793]
[1759057073651,0.70000001,201.46,201.42,5.64463793]
[1759057074037,0.70000001,201.46,201.43,0.68]
[1759057077947,0.7,201.45,201.41,5.64499677]
[1759057078147,0.7,201.45,201.42,0.68]
[1759057081155,0.7,201.45,201.41,0.68]
[1759057082270,0.7,201.45,201.42,0.68]
[1759057087578,1e-08,201.46,201.4,4.96524329]
[1759057087777,1e-08,201.46,201.42,0.68]
[1759057088561,1e-08,201.46,201.42,38.58]
[1759057088969,1e-08,201.46,201.43,0.68]
[1759057089691,1e-08,201.46,201.44,4.96425734]
[1759057090060,1e-08,201.46,201.44,5.64425734]
[1759057091688,1e-08,201.46,201.45,0.7]
[1759057092478,1e-08,201.46,201.43,4.96450379]
[1759057092680,1e-08,201.46,201.44,0.7]
[1759057093572,1e-08,201.46,201.44,5.66424265]
[1759057093890,1e-08,201.46,201.45,0.7]
[1759057094897,1e-08,201.46,201.44,5.66424265]
[1759057095076,1e-08,201.46,201.45,0.7]
[1759057100600,1e-08,201.46,201.44,4.96424265]
[1759057100787,1e-08,201.46,201.44,5.64424265]
[1759057101998,0.68,201.45,201.36,14.93614797]
[1759057102202,0.68,201.44,201.39,5.64546388]
[1759057102410,0.68,201.43,201.39,43.54546388]
[1759057102705,1e-08,201.46,201.39,43.54546388]
[1759057102892,0.68,201.42,201.39,43.54546388]
[1759057105279,0.68,201.43,201.4,0.68]
[1759057105693,1e-08,201.46,201.4,0.68]
[1759057105694,1e-08,201.46,201.4,5.64520708]
[1759057105898,0.68,201.45,201.4,5.64520708]